bitfinex-derivatives/quotes_SOLF0:USTF0_20260108
["timestamp","ask_amount","ask_price","bid_price","bid_amount"]
[1767908482348,8.66518667,138.81,138.75,85.2]
[1767908485552,8.66518667,138.81,138.74,8.60219365]
[1767908487146,8.66518667,138.81,138.75,2.10949365]
[1767908487450,2.17568667,138.83,138.75,2.10949365]
[1767908488553,8.66468667,138.82,138.75,2.10949365]
[1767908490140,8.66518667,138.81,138.75,2.10949365]
[1767908490347,8.66518667,138.81,138.74,6.4927]
[1767908490852,2.17568667,138.81,138.74,6.4927]
[1767908492444,2.17568667,138.81,138.75,6.4922]
[1767908495653,2.17568667,138.81,138.71,2.1090224]
[1767908497558,8.66518667,138.81,138.74,6.4927]
[1767908497855,2.17664927,138.8,138.74,6.4927]
[1767908498053,2.17664927,138.8,138.74,8.6017224]
[1767908498260,113.8979,138.85,138.7,195.06093251]
[1767908498261,8.66544927,138.83,138.75,2.1090224]
[1767908498447,2.17664927,138.83,138.75,2.1090224]
[1767908499559,6.489,138.82,138.76,6.4918]
[1767908500265,6.489,138.82,138.75,2.1090224]
[1767908502867,6.489,138.82,138.75,8.6013224]
[1767908503964,6.489,138.82,138.76,2.1090224]
[1767908505070,8.66614927,138.81,138.75,6.4923]
[1767908505671,8.66614927,138.81,138.76,6.63361412]
[1767908508176,8.66674927,138.8,138.76,6.63361412]
[1767908508472,2.17664927,138.8,138.75,6.63361412]
[1767908509569,6.4904,138.79,138.75,6.63361412]
[1767908511963,8.66704927,138.79,138.75,6.63361412]
[1767908513174,8.66704927,138.79,138.74,6.63361412]
[1767908514779,6.491,138.78,138.74,6.63361412]
[1767908515786,6.4904,138.79,138.75,2.1090224]
[1767908516078,2.17664927,138.85,138.79,2.1090224]
[1767908516377,2.17664927,138.85,138.79,8.74263652]
[1767908517570,6.4882,138.84,138.79,8.74263652]
[1767908517770,2.17664927,138.85,138.79,6.63361412]
[1767908518170,2.17664927,138.85,138.78,6.63361412]
[1767908518371,8.66464927,138.85,138.79,6.63361412]
[1767908519472,6.4883,138.84,138.79,6.63361412]
[1767908520278,6.4886,138.83,138.79,6.63361412]
[1767908520773,6.4886,138.83,138.78,6.63361412]
[1767908521568,8.66524927,138.83,138.78,6.63361412]
[1767908521772,2.17664927,138.82,138.77,6.63361412]
[1767908521976,2.17664927,138.82,138.76,6.63361412]
[1767908522877,2.17664927,138.82,138.77,6.63361412]
[1767908523070,2.17664927,138.82,138.76,6.63361412]
[1767908523267,8.66604927,138.82,138.77,6.63361412]
[1767908524374,6.4894,138.82,138.78,6.63361412]
[1767908524580,100.8612,138.93,138.82,2.31516253]
[1767908524780,100.8612,138.93,138.85,8.93567209]
[1767908524975,103.05066969,138.93,138.85,94.11567209]
[1767908525177,6.4847,138.92,138.85,87.49516253]
[1767908526081,6.4847,138.92,138.85,94.11567209]
[1767908526281,8.8335926,138.92,138.85,87.49516253]
[1767908527484,8.8335926,138.92,138.85,89.26974313]
[1767908529080,8.8335926,138.92,138.85,87.49516253]
[1767908529278,2.3488926,138.92,138.85,87.49516253]
[1767908532079,8.8332926,138.92,138.85,87.49516253]
[1767908532783,8.8332926,138.92,138.86,2.31399431]
[1767908538086,6.4848,138.91,138.86,2.31399431]
[1767908543590,2.3488926,138.96,138.88,2.31399431]
[1767908543783,2.3488926,138.96,138.9,4.08857491]
[1767908543986,2.3488926,138.96,138.9,87.45399431]
[1767908544188,0.05467344,138.93,138.9,87.45399431]
[1767908547400,12.97199225,138.97,138.91,2.31399431]
[1767908548591,19.45409225,138.97,138.91,8.79869431]
[1767908548784,12.97199225,138.97,138.92,4.08857491]
[1767908549099,12.97199225,138.97,138.91,2.31399431]
[1767908551394,12.97199225,138.97,138.91,4.08857491]
[1767908551590,12.97199225,138.97,138.92,2.31399431]
[1767908555504,6.4829,138.95,138.89,2.22857059]
[1767908555800,6.4829,138.95,138.85,6.62050956]
[1767908555801,2.37167541,138.94,138.87,85.1]
[1767908556692,6.4839,138.93,138.87,85.1]
[1767908559094,6.4839,138.93,138.87,87.32857059]
[1767908559295,6.4839,138.93,138.88,2.22857059]
[1767908559699,12.97199225,138.97,138.92,2.22857059]
[1767908560006,12.97199225,138.97,138.93,85.1]
[1767908564406,12.97199225,138.97,138.93,93.81237059]
[1767908564606,12.97199225,138.97,138.93,87.32857059]
[1767908564802,12.97199225,138.97,138.93,85.1]
[1767908570014,19.45419225,138.97,138.93,85.1]
[1767908570216,15.34366766,138.97,138.91,2.22857059]
[1767908570417,15.34366766,138.97,138.92,85.08]
[1767908571625,6.4825,138.96,138.92,85.08]
[1767908572123,8.85417541,138.96,138.92,85.08]
[1767908572622,2.37167541,138.94,138.87,2.22857059]
[1767908573012,2.37167541,138.94,138.88,6.4868]
[1767908573319,2.37167541,138.94,138.87,2.22857059]
[1767908573519,8.85577541,138.94,138.87,8.71587059]
[1767908577627,2.37167541,138.93,138.87,8.71587059]
[1767908580223,2.37167541,138.91,138.84,8.84908015]
[1767908580414,2.76542909,138.96,138.86,2.22857059]
[1767908580415,2.37167541,138.94,138.86,2.22857059]
[1767908581128,2.37167541,138.94,138.88,6.4868]
[1767908584520,8.85577541,138.94,138.86,8.71587059]
[1767908585735,2.22321295,138.93,138.86,8.71587059]
[1767908587122,2.22321295,138.93,138.87,6.4873]
[1767908589828,8.70801295,138.93,138.86,2.22857059]
[1767908590528,2.22321295,138.93,138.87,8.75687079]
[1767908593141,8.641638,138.96,138.89,8.75597079]
[1767908594232,2.158238,139.02,138.93,2.26967079]
[1767908595636,8.638638,139.02,138.95,6.4834]
[1767908597336,8.638638,139.02,138.93,2.26967079]
[1767908598635,8.638638,139.02,138.94,2.26967079]
[1767908600342,6.4809,139.01,138.94,2.26967079]
[1767908603342,2.158238,139.02,138.95,2.26967079]
[1767908604547,8.638638,139.02,138.95,2.26967079]
[1767908605534,8.639038,139.01,138.95,2.26967079]
[1767908607347,2.158238,139.01,138.95,2.26967079]
[1767908608545,2.158238,139.01,138.95,8.75307079]
[1767908609850,1.21379806,139.01,138.95,8.75307079]
[1767908610348,1.21379806,139.01,138.96,6.4831]
[1767908614650,2.13254754,139.03,138.96,8.60491536]
[1767908615041,8.61244754,139.03,138.96,8.60491536]
[1767908615444,2.13254754,139.02,138.96,8.60491536]
[1767908619653,2.13254754,139.04,138.97,2.12181536]
[1767908619849,100.7563,139.09,138.97,2.12181536]
[1767908619850,2.13254754,139.08,138.97,2.12181536]
[1767908620054,2.13254754,139.07,138.97,8.60411536]
[1767908620259,2.13254754,139.07,138.97,2.12181536]
[1767908620456,2.13254754,139.05,138.97,2.12181536]
[1767908620858,2.13254754,139.04,138.97,2.12181536]
[1767908622764,2.13254754,139.04,138.95,2.12181536]
[1767908622765,2.13254754,139.02,138.95,2.12181536]
[1767908623562,8.61344754,139.01,138.95,2.12181536]
[1767908624361,2.13254754,139.01,138.95,8.60531536]
[1767908624570,3.90251273,139.01,138.95,8.60531536]
[1767908625266,3.90251273,139.01,138.95,2.12181536]
[1767908627270,10.38331273,139.01,138.95,2.12181536]
[1767908636484,8.61334754,139.01,138.95,2.12181536]
[1767908636888,2.13254754,139.0,138.93,8.74232492]
[1767908637775,2.13254754,139.0,138.93,15.22682492]
[1767908639392,8.61374754,139.0,138.93,8.74232492]
[1767908640186,8.61424754,138.99,138.93,8.74232492]
[1767908644391,6.4822,138.98,138.93,8.74232492]
[1767908645397,2.20754801,139.03,138.97,6.62050956]
[1767908645695,2.20754801,139.02,138.94,85.08]
[1767908645892,6.4808,139.01,138.94,91.564]
[1767908646196,2.20754801,139.02,138.94,93.33396519]
[1767908646391,2.20754801,139.02,138.94,86.84996519]
[1767908646787,2.20754801,139.02,138.94,85.08]
[1767908646998,2.20754801,139.02,138.94,86.84996519]
[1767908647499,2.20754801,139.02,138.94,88.93654273]
[1767908647694,6.4817,138.99,138.94,88.93654273]
[1767908647895,6.4817,138.99,138.95,2.08657754]
[1767908650392,2.0654548,139.01,138.95,2.08657754]
[1767908651595,2.0654548,139.03,138.95,2.08657754]
[1767908653602,8.5453548,139.03,138.95,8.57017754]
[1767908653800,2.0654548,139.02,138.95,2.08657754]
[1767908654303,2.0654548,139.01,138.95,2.08657754]
[1767908655390,2.0654548,138.98,138.9,10.94361005]
[1767908655588,2.0654548,138.98,138.9,2.08657754]
[1767908656205,2.0654548,138.98,138.91,2.08657754]
[1767908657704,2.0654548,138.98,138.91,8.57197754]
[1767908658203,8.5476548,138.98,138.91,8.57197754]
[1767908658595,8.5476548,138.98,138.92,2.08657754]
[1767908658790,2.0654548,139.0,138.93,2.08657754]
[1767908660095,6.4822,138.98,138.93,2.08657754]
[1767908660597,2.0654548,138.97,138.91,2.08657754]
[1767908660996,2.0654548,138.97,138.9,85.08]
[1767908661599,6.4832,138.96,138.9,85.08]
[1767908662502,6.4836,138.95,138.89,8.57287754]
[1767908663106,8.5490548,138.95,138.89,8.57287754]
[1767908663510,6.4836,138.95,138.89,8.57287754]
[1767908663809,6.4836,138.95,138.9,2.08657754]
[1767908669708,6.4841,138.94,138.91,0.0515736]
[1767908673316,8.5489548,138.96,138.91,0.0515736]
[1767908673614,2.23673595,138.95,138.91,0.0515736]
[1767908676223,2.23673595,138.92,138.84,2.10784173]
[1767908676522,2.23673595,138.95,138.87,2.10784173]
[1767908677722,8.72043595,138.95,138.88,6.4867]
[1767908678022,8.72043595,138.95,138.87,2.10784173]
[1767908678023,2.23673595,138.95,138.87,2.10784173]
[1767908678418,6.4841,138.94,138.87,8.59514173]
[1767908678918,8.72173595,138.92,138.85,8.59594173]
[1767908679121,8.72173595,138.92,138.85,2.10784173]
[1767908679122,2.23673595,138.92,138.85,2.10784173]
[1767908679321,2.23673595,138.94,138.86,2.10784173]
[1767908679620,0.04710622,138.9,138.86,2.10784173]
[1767908680624,0.04710622,138.9,138.86,8.59554173]
[1767908684624,0.04710622,138.9,138.84,113.5883]
[1767908684815,0.04710622,138.9,138.85,2.10784173]
[1767908686516,0.04710622,138.9,138.85,8.59604173]
[1767908689122,0.04710622,138.9,138.85,2.10784173]
[1767908690520,0.04710622,138.9,138.85,8.59564173]
[1767908692525,0.04710622,138.9,138.86,2.10784173]
[1767908692728,2.23673595,138.98,138.86,2.16194222]
[1767908693224,2.23673595,138.98,138.86,2.10784173]
[1767908693532,8.71983595,138.97,138.89,8.59404173]
[1767908694126,8.71983595,138.97,138.92,0.05425684]
[1767908695235,6.4831,138.96,138.92,0.05425684]
[1767908696233,8.71983595,138.96,138.92,0.05425684]
[1767908700231,2.23673595,138.94,138.86,8.59534173]
[1767908700531,2.23673595,138.94,138.86,2.10784173]
[1767908701237,2.23673595,138.91,138.83,2.10784173]
[1767908701629,2.23673595,138.9,138.81,2.10784173]
[1767908702531,6.4873,138.87,138.81,2.10784173]
[1767908702737,2.23673595,138.9,138.81,2.10784173]
[1767908703731,8.72273595,138.9,138.83,2.19584512]
[1767908705026,2.26461273,138.91,138.84,2.19584512]
[1767908706538,6.4864,138.89,138.84,2.19584512]
[1767908707838,6.4858,138.91,138.85,2.37382867]
[1767908708028,2.2273724,138.93,138.85,2.37382867]
[1767908709341,6.4855,138.91,138.85,2.37382867]
[1767908710238,8.7128724,138.91,138.85,2.37382867]
[1767908714743,8.7120724,138.93,138.85,2.37382867]
[1767908714947,8.7120724,138.93,138.86,2.37382867]
[1767908716544,8.7120724,138.93,138.86,8.86162867]
[1767908717245,8.7120724,138.93,138.87,2.37382867]
[1767908718440,2.2273724,138.91,138.86,6.61641871]
[1767908718643,2.2273724,138.91,138.85,2.37382867]
[1767908719546,8.7130724,138.91,138.85,2.37382867]
[1767908720348,8.7130724,138.91,138.85,8.99024738]
[1767908721048,8.7130724,138.91,138.85,2.37382867]
[1767908724854,2.2273724,138.9,138.84,13.10511871]
[1767908725449,2.2273724,138.9,138.84,15.47894738]
[1767908728552,2.2273724,138.9,138.84,6.4887]
[1767908731153,2.2273724,138.89,138.83,8.99024738]
[1767908731353,2.2273724,138.89,138.82,6.61641871]
[1767908731554,2.2273724,138.89,138.82,2.37382867]
[1767908732455,8.79632144,138.87,138.82,2.37382867]
[1767908735465,2.30902144,138.87,138.82,2.37382867]
[1767908737259,6.4886,138.85,138.8,7.803e-05]
[1767908737465,0.09357472,138.85,138.76,2.22745355]
[1767908738262,19.0,138.86,138.74,186.1432]
[1767908738263,19.108422,138.86,138.78,2.22745355]
[1767908739167,6.4883,138.85,138.79,2.22745355]
[1767908742462,6.65437671,138.85,138.79,2.22745355]
[1767908743358,0.18008805,138.83,138.77,2.22745355]
[1767908745464,0.20763201,138.85,138.78,2.22745355]
[1767908745669,6.4879,138.86,138.78,2.22745355]
[1767908746064,6.70904775,138.86,138.78,2.22745355]
[1767908746675,6.70904775,138.86,138.79,6.491]
[1767908747171,6.70904775,138.86,138.79,8.71845355]
[1767908747770,6.4879,138.86,138.8,2.22745355]
[1767908747976,6.72162329,138.88,138.8,8.71785355]
[1767908752073,6.78634862,138.87,138.8,8.71785355]
[1767908758370,6.78634862,138.87,138.81,2.22745355]
[1767908758574,6.4873,138.87,138.82,2.22745355]
[1767908761379,0.39494262,138.88,138.82,8.71695355]
[1767908764788,6.88194262,138.88,138.82,8.71695355]
[1767908767983,6.4862,138.9,138.84,2.57334632]
[1767908768393,2.27579991,138.92,138.84,2.57334632]
[1767908768592,0.50202092,138.91,138.84,2.57334632]
[1767908769289,6.486,138.9,138.84,9.06204632]
[1767908769490,6.99815319,138.9,138.84,2.57334632]
[1767908769695,0.51215319,138.89,138.84,2.57334632]
[1767908770600,6.99855319,138.89,138.84,2.57334632]
[1767908770992,0.51215319,138.89,138.84,2.57334632]
[1767908771187,7.0179478,138.91,138.84,9.06204632]
[1767908771497,2.30582679,138.91,138.84,9.06204632]
[1767908772599,6.4859,138.9,138.84,9.06204632]
[1767908773601,6.4859,138.9,138.84,2.57334632]
[1767908774698,7.04757612,138.89,138.82,9.06294632]
[1767908774891,0.57050221,138.92,138.83,2.57334632]
[1767908775296,6.4859,138.91,138.83,2.57334632]
[1767908776009,6.4859,138.9,138.84,2.57334632]
[1767908778201,6.4855,138.91,138.85,2.57334632]
[1767908778504,0.5981338,138.93,138.85,2.57334632]
[1767908779605,6.485,138.92,138.86,2.57334632]
[1767908780697,6.4843,138.94,138.87,2.57334632]
[1767908781708,6.4843,138.94,138.88,2.57334632]
[1767908783203,6.4843,138.94,138.89,2.57334632]
[1767908786513,8.97964318,138.93,138.87,87.69334632]
[1767908788809,2.49514318,138.96,138.89,2.57334632]
[1767908789206,1.77377899,138.95,138.89,2.57334632]
[1767908790715,6.4841,138.94,138.89,2.57334632]
[1767908795221,2.77353042,138.94,138.89,2.57334632]
[1767908800623,8.25727899,138.96,138.89,9.05954632]
[1767908800825,11.03080941,138.96,138.89,9.05954632]
[1767908801227,2.77353042,138.95,138.89,9.05954632]
[1767908801424,6.4827,138.97,138.9,6.4857]
[1767908801623,4.54730941,138.99,138.91,2.79543771]
[1767908802124,2.77353042,138.97,138.91,2.79543771]
[1767908803532,2.77353042,138.97,138.91,9.28083771]
[1767908804624,2.77353042,138.97,138.92,6.4849]
[1767908809536,2.77353042,138.97,138.93,6.4845]
[1767908810338,9.25543042,138.99,138.93,6.4845]
[1767908812241,9.25543042,138.99,138.93,9.27993771]
[1767908821349,2.77353042,138.98,138.93,9.27993771]
[1767908821653,2.77353042,138.98,138.92,6.485]
[1767908821953,2.77353042,138.97,138.87,9.40939686]
[1767908822157,2.77353042,138.97,138.88,2.79543771]
[1767908822359,2.77353042,138.97,138.89,2.79543771]
[1767908822656,2.77353042,138.97,138.9,2.9004638]
[1767908822657,2.9167547,138.96,138.9,2.9004638]
[1767908824552,9.3998547,138.96,138.9,2.9004638]
[1767908828459,2.82320698,138.94,138.88,9.54297251]
[1767908829162,0.04581741,138.92,138.88,9.54297251]
[1767908830559,2.82320698,138.94,138.88,16.02957251]
[1767908831064,2.82320698,138.94,138.87,6.61395915]
[1767908831265,2.82320698,138.94,138.87,9.54297251]
[1767908832463,2.82320698,138.94,138.88,6.4868]
[1767908832659,6.4835,138.96,138.89,2.92901336]
[1767908832858,9.30670698,138.96,138.89,2.92901336]
[1767908834060,2.82320698,138.95,138.89,2.92901336]
[1767908834562,9.30680698,138.95,138.89,2.92901336]
[1767908834962,2.82320698,138.94,138.88,13.10075915]
[1767908835367,2.82320698,138.94,138.88,6.4868]
[1767908835969,9.30730698,138.94,138.87,9.54297251]
[1767908836268,2.82320698,138.93,138.87,9.54297251]
[1767908837564,2.82320698,138.93,138.87,16.03027251]
[1767908837862,6.4841,138.94,138.88,2.92901336]
[1767908838067,2.82320698,138.95,138.88,2.92901336]
[1767908838667,2.82320698,138.95,138.88,9.54297251]
[1767908839570,2.82320698,138.95,138.88,16.02977251]
[1767908841071,9.30680698,138.95,138.88,16.02977251]
[1767908841258,2.82320698,138.97,138.9,9.41491336]
[1767908841463,2.82320698,138.97,138.9,6.4859]
[1767908841669,9.30630698,138.97,138.91,2.92901336]
[1767908846776,2.82320698,138.97,138.91,9.41401336]
[1767908849576,2.82320698,138.97,138.91,16.02797251]
[1767908852084,6.4822,138.98,138.92,2.92901336]
[1767908852275,9.30540698,138.98,138.92,2.92901336]
[1767908852876,3.0296162,139.01,138.93,2.99155376]
[1767908853083,3.0296162,139.01,138.94,85.1]
[1767908853481,3.0296162,139.0,138.94,85.1]
[1767908854584,3.0296162,138.99,138.94,85.1]
[1767908857677,9.5113162,138.99,138.93,2.99155376]
[1767908857879,9.5113162,138.99,138.94,85.1]
[1767908860985,6.4824,138.98,138.94,85.1]
[1767908864089,3.0296162,138.97,138.94,85.1]
[1767908864291,6.4824,138.98,138.94,85.1]
[1767908868688,3.0296162,138.99,138.92,2.99155376]
[1767908868889,3.0296162,138.98,138.93,2.99155376]
[1767908869188,3.0296162,139.0,138.93,2.99155376]
[1767908870594,6.4827,138.97,138.93,2.99155376]
[1767908877291,6.4827,138.97,138.92,85.08]
[1767908877492,3.0296162,138.98,138.93,85.1]
[1767908878601,6.4827,138.97,138.93,85.1]
[1767908881801,3.0296162,138.96,138.9,2.99155376]
[1767908882000,185.8983,139.01,138.9,2.99155376]
[1767908882001,3.0296162,138.98,138.9,2.99155376]
[1767908882791,6.4831,138.97,138.9,6.4859]
[1767908882996,9.6845701,138.97,138.91,3.20147851]
[1767908883398,3.2014701,138.97,138.91,3.20147851]
[1767908884504,6.4833,138.96,138.91,3.20147851]
[1767908884698,3.2014701,139.02,138.96,7.851e-05]
[1767908884892,3.2014701,139.01,138.93,1.77028216]
[1767908885092,3.2014701,139.01,138.93,86.87028216]
[1767908886607,6.4822,138.98,138.93,86.87028216]
[1767908886807,6.4822,138.98,138.93,90.07858814]
[1767908893924,6.4817,139.0,138.94,3.20830598]
[1767908894509,2.9116374,139.05,138.96,3.20830598]
[1767908894709,2.9116374,139.05,138.97,88.28830598]
[1767908894914,6.4794,139.04,138.98,3.20830598]
[1767908897418,2.9116374,139.05,138.98,3.20830598]
[1767908898626,9.3906374,139.05,138.98,3.20830598]
[1767908899725,6.479,139.05,138.99,3.20830598]
[1767908903125,2.9116374,139.07,139.0,3.20830598]
[1767908903916,6.4785,139.06,139.0,3.20830598]
[1767908905032,6.479,139.05,139.0,3.20830598]
[1767908905426,9.3906374,139.05,139.0,3.20830598]
[1767908906331,9.3906374,139.05,138.98,94.75040598]
[1767908906934,9.3906374,139.05,138.99,3.20830598]
[1767908911030,6.479,139.05,139.0,3.20830598]
[1767908912724,6.4796,139.04,138.98,88.33536592]
[1767908913835,6.4796,139.04,138.99,3.27536592]
[1767908915641,6.4806,139.02,138.97,3.27536592]
[1767908915937,3.26203583,139.04,138.97,3.27536592]
[1767908916441,5.03231799,139.06,138.98,3.27536592]
[1767908917033,3.26203583,139.06,138.98,3.27536592]
[1767908917643,6.4794,139.04,138.99,3.27536592]
[1767908922543,6.4799,139.03,138.99,3.27536592]
[1767908922738,6.4799,139.03,138.97,3.27536592]
[1767908923634,6.4803,139.02,138.97,3.27536592]
[1767908924040,3.26203583,139.01,138.94,22.0]
[1767908924247,9.74333583,139.0,138.93,3.27536592]
[1767908924439,9.74333583,139.0,138.94,3.27536592]
[1767908924846,9.74383583,138.99,138.92,88.33536592]
[1767908925144,9.74383583,138.99,138.92,90.10564808]
[1767908925447,9.74383583,138.99,138.93,3.27536592]
[1767908926335,6.4804,139.02,138.96,3.27536592]
[1767908927141,9.74243583,139.02,138.96,3.27536592]
[1767908928948,9.74303583,139.01,138.94,3.27536592]
[1767908929746,9.74303583,139.01,138.94,9.75936592]
[1767908929943,9.74303583,139.01,138.95,3.27536592]
[1767908931148,9.74303583,139.01,138.95,9.75886592]
[1767908932255,9.74223583,139.03,138.96,9.75836592]
[1767908932842,6.4803,139.02,138.96,9.75836592]
[1767908933058,9.74233583,139.02,138.96,9.75836592]
[1767908933446,9.74293583,139.01,138.94,9.75896592]
[1767908933648,3.26203583,139.01,138.93,85.06]
[1767908933855,3.26203583,139.01,138.94,3.27536592]
[1767908934452,3.26203583,138.99,138.93,88.33536592]
[1767908935559,9.74383583,138.99,138.93,88.33536592]
[1767908936154,9.74383583,138.99,138.93,3.27536592]
[1767908940155,6.4825,138.98,138.93,3.27536592]
[1767908941244,9.74453583,138.98,138.9,8.85703251]
[1767908941453,9.74453583,138.98,138.91,88.33536592]
[1767908941750,9.74453583,138.98,138.92,3.27536592]
[1767908941954,9.74453583,138.98,138.92,9.89082024]
[1767908942159,9.74453583,138.98,138.92,3.27536592]
[1767908942861,9.74453583,138.98,138.92,9.89082024]
[1767908944262,9.74453583,138.98,138.92,3.27536592]
[1767908945164,9.74453583,138.98,138.93,3.37934458]
[1767908951964,3.26203583,138.98,138.93,3.37934458]
[1767908952564,3.26203583,138.98,138.92,6.4849]
[1767908952959,3.26203583,138.98,138.92,9.6977244]
[1767908958174,3.26203583,138.98,138.92,16.31317872]
[1767908958774,3.26203583,138.98,138.92,9.6977244]
[1767908958775,9.74423583,138.98,138.92,9.6977244]
[1767908959778,3.35039132,138.97,138.91,6.61545432]
[1767908959974,3.35039132,138.97,138.89,6.61545432]
[1767908960174,3.35039132,138.97,138.9,3.2128244]
[1767908961271,3.35039132,138.96,138.9,3.2128244]
[1767908962583,6.4837,138.95,138.9,3.2128244]
[1767908965089,3.35039132,138.96,138.9,16.31417872]
[1767908966590,9.83349132,138.96,138.9,16.31417872]
[1767908966793,3.35039132,138.96,138.91,3.2128244]
[1767908966976,3.35039132,138.96,138.91,9.82827872]
[1767908968186,6.4827,138.97,138.92,3.2128244]
[1767908968487,3.35039132,139.0,138.93,3.2128244]
[1767908969288,6.4822,138.98,138.93,3.2128244]
[1767908975198,6.4822,138.98,138.93,9.82827872]
[1767908976104,9.79045639,138.97,138.92,91.69545432]
[1767908977498,100.8117,139.02,138.91,6.61545432]
[1767908977499,3.30775639,138.95,138.91,6.61545432]
[1767908977794,3.30775639,138.95,138.9,91.69545432]
[1767908978102,3.30775639,138.96,138.89,10.13648843]
[1767908978302,3.30775639,138.96,138.89,3.52103411]
[1767908978488,3.30775639,138.96,138.89,10.13648843]
[1767908978689,3.30775639,138.96,138.9,6.61545432]
[1767908979295,3.30775639,138.96,138.89,10.13648843]
[1767908979601,9.79095639,138.96,138.89,16.62278843]
[1767908984299,9.79095639,138.96,138.9,3.52103411]
[1767908984809,6.4837,138.95,138.9,3.52103411]
[1767908990413,6.4831,138.97,138.9,3.52103411]
[1767908990713,6.4831,138.97,138.91,3.52103411]
[1767908991312,6.4832,138.96,138.91,3.52103411]
[1767908992417,6.4824,138.98,138.92,3.52103411]
[1767908992616,6.4824,138.98,138.94,3.52103411]
[1767908994610,6.4824,138.98,138.92,5.29188881]
[1767908996606,6.4824,138.98,138.92,3.52103411]
[1767908997514,9.78945639,138.99,138.92,16.62138843]
[1767908997921,3.30775639,138.99,138.92,16.62138843]
[1767908999322,6.4822,138.98,138.92,10.13648843]
[1767909002416,6.4822,138.98,138.93,3.4062775]
[1767909004424,6.4827,138.97,138.93,3.4062775]
[1767909006622,6.4821,138.99,138.94,3.33757939]
[1767909006829,3.33480314,139.01,138.95,3.33757939]
[1767909007121,3.33480314,139.01,138.95,5.10843409]
[1767909007520,3.33480314,139.01,138.95,3.33757939]
[1767909008628,3.33480314,139.0,138.95,3.33757939]
[1767909009627,6.4822,138.98,138.95,3.33757939]
[1767909012735,6.4822,138.98,138.94,3.33757939]
[1767909014734,9.81620314,139.0,138.95,3.33757939]
[1767909015628,3.33480314,139.0,138.95,3.33757939]
[1767909016432,3.33480314,138.99,138.93,123.51753371]
[1767909017435,3.33480314,138.99,138.94,9.95303371]
[1767909017739,9.81660314,138.99,138.94,9.95303371]
[1767909019234,9.81660314,138.99,138.94,3.33757939]
[1767909020345,9.81660314,138.99,138.94,9.95303371]
[1767909020542,6.4818,138.99,138.95,3.33757939]
[1767909020740,3.33480314,139.01,138.95,3.33757939]
[1767909021544,9.81630314,139.0,138.95,3.33757939]
[1767909022036,9.81630314,139.0,138.94,6.61545432]
[1767909022643,6.4817,138.99,138.93,101.51733371]
[1767909022845,6.4817,138.99,138.94,3.33757939]
[1767909023042,6.4817,138.99,138.95,3.33757939]
[1767909023243,3.33480314,139.0,138.95,3.33757939]
[1767909025240,6.481,139.01,138.95,9.82107939]
[1767909025746,9.81580314,139.01,138.95,9.82107939]
[1767909027039,3.33480314,139.01,138.96,6.483]
[1767909028448,9.81520314,139.02,138.96,9.82057939]
[1767909030644,3.33480314,139.02,138.97,6.4826]
[1767909031351,9.81460314,139.04,138.97,9.82017939]
[1767909031952,3.33480314,139.03,138.97,9.82017939]
[1767909035152,3.33480314,139.03,138.98,6.4821]
[1767909037044,3.36065626,139.05,138.99,9.94391015]
[1767909037346,3.36065626,139.05,138.99,3.46231015]
[1767909038653,3.36065626,139.05,139.0,6.4812]
[1767909042248,3.36065626,139.05,138.99,9.94401015]
[1767909043156,3.36065626,139.04,138.98,91.5421]
[1767909043356,3.36065626,139.02,138.96,25.46231015]
[1767909043561,3.36065626,139.02,138.95,6.61545432]
[1767909043562,3.36065626,139.0,138.94,3.46231015]
[1767909043756,3.36065626,139.0,138.95,3.46231015]
[1767909043957,3.36065626,139.0,138.94,85.06]
[1767909044161,1.7708547,138.99,138.91,10.07776447]
[1767909044368,3.36065626,138.98,138.91,3.46231015]
[1767909044667,3.36065626,138.98,138.92,6.485]
[1767909044958,3.36065626,138.98,138.92,9.94731015]
[1767909045161,3.36065626,138.98,138.92,3.46231015]
[1767909046567,3.36065626,138.98,138.93,6.4844]
[1767909050165,11.61231096,139.02,138.94,3.46231015]
[1767909050361,5.13151096,139.02,138.95,3.46231015]
[1767909050561,3.36065626,139.02,138.95,3.46231015]
[1767909050961,3.36065626,139.04,138.97,3.46231015]
[1767909052571,3.36065626,139.04,138.95,28.61545432]
[1767909052572,3.36065626,139.04,138.98,3.46231015]
[1767909053166,3.36065626,139.04,138.99,6.4817]
[1767909056578,3.36065626,139.06,139.0,6.4811]
[1767909060775,3.36065626,139.05,138.99,3.46231015]
[1767909063080,3.36065626,139.05,138.97,3.45150647]
[1767909063680,100.7495,139.1,138.97,3.45150647]
[1767909063878,3.41663435,139.07,139.01,3.45150647]
[1767909064384,6.4779,139.08,139.01,3.45150647]
[1767909064784,3.41663435,139.09,139.03,3.45150647]
[1767909064989,3.41663435,139.09,139.01,3.45150647]
[1767909065980,2.76485217,139.11,139.01,3.45150647]
[1767909065981,6.478,139.07,139.01,3.45150647]